Cogmind - Beta 11.1 @@@ ROGUE MODE // 2022.04.25 @ 20:56:56 Player: FrigidRock Result: Destroyed by Heavy Explosive Trap Performance ------------- Evolutions (0) 0 Regions Visited (3) 600 Robots Destroyed (9) 45 Value Destroyed (277) 277 Prototype IDs (2) 40 Alien Tech Used (0) 0 Bonus (0) 0 TOTAL SCORE: 962 Bonus ------- None Cogmind --------- Core Integrity 0/250 Matter 269/300 Energy 160/160 System Corruption 4% Temperature Cool (0) Movement Treading (320) Ox2 Location -10/Exiles Parts ------- > --- POWER (1) -------- Light Nuclear Core > --- PROPULSION (2) --- Light Treads > --- UTILITY (2) ------ High-capacity Storage Unit > --- WEAPON (2) ------- Heavy Assault Rifle > --- INVENTORY (20) --- Ion Engine Nuclear Core Light Fission Core Light Fission Core Light Treads Improved Heat Sink Humpback Humpback High-capacity Battery (250) Seismic Detector Light Armor Plating Light Assault Rifle Grenade Launcher Heavy Explosive Trap Peak State ------------ > --- POWER ------------ Light Nuclear Core > --- PROPULSION ------- Light Treads Light Treads > --- UTILITY ---------- High-capacity Storage Unit Light Armor Plating > --- WEAPON ----------- Heavy Assault Rifle Heavy Assault Rifle > --- INVENTORY -------- Ion Engine Light Ion Engine Nuclear Core Light Fission Core Light Fission Core Light Treads Light Treads Aluminum Leg Aluminum Leg Improved Heat Sink Small Storage Unit Seismic Detector Light Armor Plating Medium Laser Light Assault Rifle Grenade Launcher Heavy Explosive Trap Heavy Explosive Trap Heavy Explosive Trap [Rating: 14] Favorites ----------- Power Light Nuclear Core Engine Ion Engine Power Core Light Nuclear Core Propulsion Light Treads Treads Light Treads Utility High-capacity Storage Unit Device Seismic Detector Storage High-capacity Storage Unit Protection Light Armor Plating Weapon Heavy Assault Rifle Energy Gun Medium Laser Ballistic Gun Heavy Assault Rifle Build | -11 -10 -10 -10 ------- Run | Scr Mat Min Exi Slots Evolved . | . . . . Power . | . . . . Propulsion . | . . . . Utility . | . . . . Weapon . | . . . . Parts Attached 18 | 7 2 8 1 Power 3 | 1 1 1 . Engine 2 | 1 1 . . Core 1 | . . 1 . Reactor . | . . . . Propulsion 5 | 2 . 2 1 Treads 5 | 2 . 2 1 Leg . | . . . . Wheel . | . . . . Hover . | . . . . Flight . | . . . . Utility 4 | 2 1 1 . Device 1 | 1 . . . Storage 2 | 1 1 . . Processor . | . . . . Hackware . | . . . . Protection 1 | . . 1 . Artifact . | . . . . Weapon 6 | 2 . 4 . Energy Gun 2 | 1 . 1 . Energy Cannon . | . . . . Ballistic Gun 4 | 1 . 3 . Ballistic Cannon . | . . . . Launcher . | . . . . Special Weapon . | . . . . Impact Weapon . | . . . . Slashing Weapon . | . . . . Piercing Weapon . | . . . . Special Melee Weapon . | . . . . Unidentified Prototypes . | . . . . Parts Lost 5 | . . 1 4 Power . | . . . . Propulsion 2 | . . . 2 Utility 1 | . . . 1 Weapon 2 | . . 1 1 Highest Loss Streak 4 | . . 1 4 To Critical Strikes . | . . . . Average Slot Usage (%) 99 | . 100 99 99 Engine 5 | . 14 3 . Core 8 | . . 10 14 Treads 28 | . 28 28 28 Device 6 | . 14 7 . Storage 14 | . 14 14 14 Protection 6 | . . 6 13 Energy Gun 8 | . 14 13 . Ballistic Gun 19 | . 14 15 27 Naked Turns . | . . . . Heaviest Build 54 | 12 49 54 54 Greatest Support 40 | 40 40 40 40 Greatest Overweight (x) 1 | . 1 1 1 Average Overweight (x) . | . . 1 1 Largest Inventory Capacity 20 | 8 20 20 20 Average Capacity 19 | 7 19 20 20 Most Carried 20 | 1 5 16 20 Average Carried 10 | . 4 9 18 Final Capacity 20 | 8 20 20 20 Final Carried 16 | 1 5 16 16 Class Distribution -------------------- 50% | Mutant 49% | Scavenger-Mutant Dominant Class ---------------- Mutant | -10/Materials Scavenger-Mutant | -10/Mines Scavenger-Mutant | -10/Exiles Resources | -11 -10 -10 -10 ----------- Run | Scr Mat Min Exi Matter Collected 411 | 177 133 101 . Remotely . | . . . . Salvage Created 366 | 13 162 191 . Parts 28 | 5 11 12 . Haulers Intercepted 1 | . 1 . . Recyclers Shooed . | . . . . Parts Field Recycled . | . . . . Retrieved Matter . | . . . . Parts Self-Destructed . | . . . . Prevented . | . . . . Kills | -11 -10 -10 -10 ------- Run | Scr Mat Min Exi Combat Hostiles Destroyed 6 | . 2 4 . Guns 6 | . 2 4 . Classes Destroyed 5 | 1 3 1 . Tunneler 1 | 1 . . . Hauler 1 | . 1 . . Watcher 1 | . 1 . . Grunt 4 | . 2 2 . Sentry 2 | . . 2 . Best Kill Streak 2 | 1 2 2 . Combat Bots Only 2 | . 2 2 . Max Kills in Single Turn 1 | 1 1 1 . Gunslinging . | . . . . Exploded . | . . . . Melee . | . . . . Uniques/NPCs Destroyed . | . . . . Combat | -11 -10 -10 -10 -------- Run | Scr Mat Min Exi Damage Taken 1249 | . 84 237 928 Core 252 | . 29 33 190 Absorbed by Shields . | . . . . Core Remaining (%) 100 | 100 . . . Volleys Fired 32 | 3 17 12 . Largest 2 | 2 2 2 . Hottest 90 | 70 70 90 . Shots Fired 64 | 6 34 23 1 Gun 64 | 6 34 23 1 Cannon . | . . . . Launcher . | . . . . Special . | . . . . Kinetic 25 | 3 17 4 1 Thermal 31 | 3 17 11 . Explosive . | . . . . Electromagnetic 8 | . . 8 . Robot Hit Streak 6 | 3 6 4 . Robot Miss Streak 5 | 3 5 2 . Penetration Max . | . . . . Secondary Targets . | . . . . Shots Hit Robots 37 | 3 20 14 . Core Hits 21 | 2 10 9 . Critical Kills . | . . . . Critical Parts Destroyed . | . . . . Critical Strikes 1 | . . 1 . Burn 1 | . . 1 . Melee Attacks . | . . . . Impact . | . . . . Slashing . | . . . . Piercing . | . . . . Sneak Attacks . | . . . . Combat Hostiles . | . . . . Follow-up Attacks . | . . . . Damage Inflicted 400 | 30 202 168 . Guns 400 | 30 202 168 . Cannons . | . . . . Explosions . | . . . . Melee . | . . . . Ramming . | . . . . Kinetic 137 | 17 92 28 . Thermal 209 | 13 110 86 . Explosive . | . . . . Electromagnetic 54 | . . 54 . Impact . | . . . . Slashing . | . . . . Piercing . | . . . . Highest Corruption 4 | . 4 4 4 Average Corruption 3 | . 3 4 4 Corruption Purged . | . . . . Corruption Blocked . | . . . . Effects 30 | . 3 14 13 Message Errors 7 | . 1 4 2 Matter Fused 7 | . 1 2 4 Heat Flow Errors 2 | . . 1 1 Energy Discharges 6 | . . 3 3 Data Loss (minor) 4 | . . 2 2 Data Loss (major) 2 | . 1 1 . Misfires 1 | . . . 1 Weapon Failures 1 | . . 1 . Overload Shots . | . . . . Overflow Damage . | . . . . Projectiles . | . . . . Explosions . | . . . . Melee . | . . . . Knockbacks . | . . . . Impact . | . . . . Kinetic . | . . . . Secondary . | . . . . Self-Inflicted Damage . | . . . . Shots . | . . . . Rammed . | . . . . Targets Rammed . | . . . . Kicked . | . . . . Crushed . | . . . . Highest Temperature 214 | 50 153 211 214 Average Temperature 64 | 26 44 80 95 Received Heat Transfer 211 | . 63 108 40 Siege Activations . | . . . . Robots Corrupted . | . . . . Combat Hostiles . | . . . . Parts Fried . | . . . . Impact Corruptions . | . . . . Robots Melted . | . . . . Combat Hostiles . | . . . . Parts Melted . | . . . . Heat Transferred 703 | 37 333 333 . Parts Sabotaged . | . . . . Parts Stolen . | . . . . Parts Stripped . | . . . . Power Chain Reactions . | . . . . Missiles Intercepted . | . . . . Alert | -11 -10 -10 -10 ------- Run | Scr Mat Min Exi Peak Influence 102 | 5 102 98 . Initial 3 | . 3 . . Average 36 | 1 43 37 . Maximum Alert Level . | . . . . Low Security (%) 100 | 100 100 100 . Level 1 . | . . . . Level 2 . | . . . . Level 3 . | . . . . Level 4 . | . . . . Level 5 . | . . . . High Security . | . . . . Max Security . | . . . . Squads Dispatched . | . . . . Investigation . | . . . . Extermination . | . . . . Reinforcement . | . . . . Assault . | . . . . Garrison . | . . . . Intercept . | . . . . Searches Triggered . | . . . . Construction Impeded . | . . . . Haulers Reinforced . | . . . . Active Scanning Responses . | . . . . Cargo Convoy Interrupts . | . . . . Stealth | -11 -10 -10 -10 --------- Run | Scr Mat Min Exi Distress Signals . | . . . . Communications Jammed . | . . . . Distress Signals . | . . . . Times Spotted 16 | . 5 4 7 Peak Tracking Total 12 | . 2 2 12 Tactical Retreats 2 | . . . 2 Traps | -11 -10 -10 -10 ------- Run | Scr Mat Min Exi Traps Triggered 3 | . 3 . . Indirectly . | . . . . Trap Hack Attempts . | . . . . Triggered . | . . . . Disarmed . | . . . . Reprogrammed . | . . . . Reused 2 | . . . 2 Traps Extracted . | . . . . Installed 2 | . . . 2 Triggered . | . . . . Most Traps Carried 3 | . . 3 3 Machines | -11 -10 -10 -10 ---------- Run | Scr Mat Min Exi Machines Disabled 1 | . . . 1 Max in Single Turn 1 | . . . 1 Machines Sabotaged . | . . . . Garrisons Compromised . | . . . . Overloaded Fab Kills . | . . . . Hacking | -11 -10 -10 -10 --------- Run | Scr Mat Min Exi Machines Accessed 3 | . 3 . . Terminals 3 | . 3 . . Fabricators . | . . . . Repair Stations . | . . . . Recycling Units . | . . . . Scanalyzers . | . . . . Garrison Access . | . . . . Total Hacks 7 | . 7 . . Successful 5 | . 5 . . Failed 2 | . 2 . . Catastrophic . | . . . . Database Lockouts . | . . . . Manual . | . . . . Terminals 7 | . 7 . . Fabricators . | . . . . Repair Stations . | . . . . Recycling Units . | . . . . Scanalyzers . | . . . . Garrison Access . | . . . . Terminal Hacks 5 | . 5 . . Robot Analysis 1 | . 1 . . Prototype ID Bank 1 | . 1 . . Emergency Access Points 1 | . 1 . . Locate Traps 1 | . 1 . . Zone Layout 1 | . 1 . . Fabricator Hacks . | . . . . Repair Station Hacks . | . . . . Recycling Unit Hacks . | . . . . Scanalyzer . | . . . . Garrison Access Hacks . | . . . . Unauthorized Hacks . | . . . . Terminals . | . . . . Fabricators . | . . . . Repair Stations . | . . . . Recycling Units . | . . . . Scanalyzers . | . . . . Garrison Access . | . . . . Data Cores Recovered . | . . . . Used . | . . . . Hacking Detections 1 | . 1 . . Full Trace Events . | . . . . Feedback Events . | . . . . Feedback Blocked . | . . . . Robot Schematics Acquired . | . . . . Robots Built . | . . . . Authchips . | . . . . Time . | . . . . Total Robot Build Rating . | . . . . Part Schematics Acquired . | . . . . Parts Built . | . . . . Authchips . | . . . . Time . | . . . . Total Part Build Rating . | . . . . Parts Repaired . | . . . . Time . | . . . . Parts Recycled . | . . . . Recycled Matter . | . . . . Retrieved Matter . | . . . . Retrieved Components . | . . . . Parts Scanalyzed . | . . . . Part Schematics Acquired . | . . . . Parts Damaged . | . . . . Bothacking | -11 -10 -10 -10 ------------ Run | Scr Mat Min Exi Used RIF Installer . | . . . . Robots Hacked . | . . . . Non-combat . | . . . . Combat . | . . . . Robot Hacks Applied . | . . . . Relay Couplers Released . | . . . . Fabnet Peak Effective % . | . . . . Robots Rewired . | . . . . Allies Hacked . | . . . . Hacks Repelled . | . . . . Allies | -11 -10 -10 -10 -------- Run | Scr Mat Min Exi Total Allies . | . . . . Largest Group . | . . . . Highest-Rated Group . | . . . . Highest-Rated Ally . | . . . . Total Orders . | . . . . Ally Attacks . | . . . . Total Damage . | . . . . Kills . | . . . . Allies Corrupted . | . . . . Allies Melted . | . . . . Intel | -11 -10 -10 -10 ------- Run | Scr Mat Min Exi Robot Analysis Total 1 | . 1 . . Derelict Logs Recovered . | . . . . Drone Launches . | . . . . Drone Recoveries . | . . . . Exploration | -11 -10 -10 -10 ------------- Run | Scr Mat Min Exi Turns Passed 1849 | 113 548 559 629 Spaces Moved 738 | 61 212 208 257 Core 7 | 7 . . . Treads 731 | 54 212 208 257 Legs . | . . . . Wheels . | . . . . Hover . | . . . . Flight . | . . . . Fastest Speed 50 | 50 160 240 240 Average Speed 230 | 147 232 240 240 Slowest Speed 240 | 160 240 240 240 Overloaded Moves . | . . . . Propulsion Burnouts . | . . . . Robots Hopped . | . . . . Cave-ins Triggered . | . . . . Exploration Rate (%) 37 | 6 40 38 66 Regions Visited 3 Branch Regions 2 Pre-discovered Areas . | . . . . Known Exits Taken . | . . . . Unknown Exits Taken 3 | 1 1 1 . Scrap Searched . | . . . . Spaces Dug . | . . . . Terrain Destroyed . | . . . . Melee . | . . . . Projectile . | . . . . AOE . | . . . . Terrain Rammed . | . . . . Walls Destroyed . | . . . . Machines Disabled . | . . . . Actions | -11 -10 -10 -10 --------- Run | Scr Mat Min Exi Total 830 | 75 238 244 273 Wait 12 | 4 3 5 . Move 735 | 60 211 207 257 Hop . | . . . . Pick Up 20 | 1 4 9 6 Fast Attach 9 | 7 . 2 . Attach 4 | . 1 2 1 Detach 1 | . . 1 . Swap 5 | . 1 4 . Drop 10 | . 1 2 7 Fire 32 | 3 17 12 . Melee . | . . . . Ram . | . . . . Kick . | . . . . Crush . | . . . . Escape Stasis . | . . . . Rewire . | . . . . Trap 2 | . . . 2 Miscellaneous . | . . . . Route ------- -11/Scrapyard -10/Materials (discovered 2 exits: [*Mat] / [*Min]) -10/Mines (discovered 2 exits: [*Mat] / [*Exi]) -10/Exiles History --------- Turn | Location | Event 3 | -11/Scrapyard | Discovered new exit (range 16) 114 | -11/Scrapyard | Entered Materials 294 | -10/Materials | Discovered new exit (range 19) 309 | -10/Materials | Build established: Mutant 623 | -10/Materials | Discovered new exit (range 15) 662 | -10/Materials | Entered Mines 1110 | -10/Mines | Found a hidden stash of uninstalled traps 1110 | -10/Mines | Discovered new exit (range 15) 1211 | -10/Mines | Deemed a non-threat by the Exiles lab entrance 1211 | -10/Mines | Discovered new exit (range 5) 1221 | -10/Mines | Entered Exiles 1226 | -10/Exiles | Build established: Scavenger-Mutant 1284 | -10/Exiles | Met 8R-AWN 1323 | -10/Exiles | Met EX-HEX 1519 | -10/Exiles | Visited The Gauntlet 1734 | -10/Exiles | Met EX-DEC 1825 | -10/Exiles | Attacked by the Exiles 1839 | -10/Exiles | Core integrity fell below 50% 1847 | -10/Exiles | Core integrity fell below 20% 1850 | -10/Exiles | Destroyed by Heavy Explosive Trap Last Messages --------------- 01835_ EX-BIN: "I just want to science!" 01836_ Hvy. Assault Rifle destroyed. 01836_ Lgt. Armor Plating destroyed. 01842_ Dropped Heavy Explosive Trap. 01842_ Lgt. Treads destroyed. 01843_ Installed Heavy Explosive Trap. 01846_ as-84825 triggered Heavy Explosive Trap. 01846_ An explosion rips through the floor. 01846_ as-29934 destroyed. 01846_ EX-Message Board disabled. 01846_ Machine disabled. 01846_ Components damaged. 01846_ as-78646 destroyed. 01847_ Dropped Heavy Explosive Trap. 01847_ Installed Heavy Explosive Trap. 01850_ as-41487 triggered Heavy Explosive Trap. 01850_ An explosion rips through the floor. 01850_ as-41487 destroyed. 01850_ as-84825 destroyed. 01850_ Lgt. Treads destroyed. Map ----- +----------------------------------------------------+ | ?????????????????????????????????????????????????? | | ?????????????????????????????????????????????????? | | ?????????????????????????????????????????????????? | | ?????????????????????????????????????????????????? | | ?????????????????????????????????????????????????? | | ?????????????????????????????????????????????????? | | ?????????????????????????????????????????????????? | | ?????????????????????????????????????????????????? | | ?????????????????????????????????????????????????? | | ?????????????????????????????????????????????????? | | ?????????????????????????????????????????????????? | | ?????????????????????????????????????????????????? | | ?????????????????????????????????????????????????? | | ?????????????????????????????????????????????????? | | ?????????????????????????????????????????????????? | | ?????????????????????????????????????????????????? | | ?????????????????????????????????????????????????? | | ??????????????????????########???????????????????? | | ??????????????????????# """#???????????????????? | | ??????????????????????#"" """#???????????????????? | | ??????????????????????#"" #???????????????????? | | ??????????????????????#"" #???????????????????? | | ??????????????????????#"" "#???????????????????? | | ??????????????????????# ""#???????????????????? | | ??????????????????????#" % #???????????????????? | | ??????????????????????# @ #???????????????????? | | ??????????? #####????# #??#####?"??????????? | | ?????????? """#### % ##""""""" ? ?????? | | ?????????? aa """"" " "" #???? | | ????????? %""" " #### | | ?????????# %a%"% " | | ???????????# | | ???????????### | | ?????????????## | | ??????????????## | | ???????????????##" | | ????????????????#""" """" " | | ???????????????##" ######""" | | ???????????????#"" ""##????????#""" | | ??????????????##""" """##??????????#""" | | ??????????????#""" """##???????????#"""" | | ??????????????#""" ""#???????????##"" | | ??????????????#"" ########??####"""" | | ??????????????#""" ## ####""" | | ??????????????#"" """" | | ??????????????##"" | | ???????????????#"""" | | ???????????????## | | ????????????????#" " "" | | ????????????????#"""" ""## ##""" " | +----------------------------------------------------+ Best States ------------- Heat Dissipation 25 Energy Generation 14 Energy Capacity 250 Matter Stores 300 Matter Capacity 300 Sight Range 16 Terrain Scan Density 10 Armor Coverage 150 Evasion (%) 40 Recoil Reduction 2 Item Schematics ----------------- None Robot Schematics ------------------ None Fabricated ------------ Nothing Alien Tech Used ----------------- None Achievements -------------- None Challenges ------------ None Game ------ Seed ShrapnelSchematicDiverter Manual? 0 Play Time 00:12:20 Cumulative 55.3 hours Start 2022.04.25 @ 20:44:49 End 2022.04.25 @ 20:56:56 Sessions 1 Manual Loads 0 Difficulty Rogue Special Mode None Game No. 31 Rogue 1 Adventurer 30 Explorer 0 Win Type - Total 1 Types 1/0/0/0/0/0/0/0/0 Lore% 39 Gallery% 49 Achievement% 38 Wizard Run 0 Options --------- ASCII 0 Keyboard 0 Movement Numpad Keybinds 0 Fullscreen 1 Font 24/Terminus Map View 76x50 Tactical HUD 1 Map Filters NONE Filters NONE Steam 1 RUN: ecb70af5-cef3-4485-9ddb-4ca1c6c70357